bitfinex/quotes_SOLUSD_20251224
["timestamp","ask_amount","ask_price","bid_price","bid_amount"]
[1766594450517,0.69,122.7,122.66,8.21320157]
[1766594451021,11.12767296,122.72,122.68,7.49320157]
[1766594451215,8.83867093,122.72,122.68,8.21320157]
[1766594451404,19.27634389,122.72,122.68,8.21320157]
[1766594451599,26.76951172,122.72,122.68,8.21320157]
[1766594451938,0.69,122.71,122.67,8.21320157]
[1766594452632,0.69,122.71,122.67,16.36514161]
[1766594454135,0.69,122.71,122.68,7.49320157]
[1766594454730,0.69,122.75,122.7,8.21320157]
[1766594454934,0.69,122.75,122.72,7.49320157]
[1766594455133,0.69,122.76,122.72,8.21320157]
[1766594456842,0.69,122.76,122.72,0.72]
[1766594457013,0.69,122.76,122.72,8.21320157]
[1766594457339,0.69,122.76,122.72,16.36182826]
[1766594457535,0.89,122.77,122.73,7.49320157]
[1766594457923,8.14597588,122.76,122.72,7.49320157]
[1766594458125,8.83597588,122.76,122.72,7.49320157]
[1766594459026,16.32917745,122.76,122.71,16.36245895]
[1766594459224,8.18320157,122.76,122.71,16.36245895]
[1766594459431,16.32918561,122.76,122.71,16.36245895]
[1766594459619,15.63918561,122.76,122.71,16.36245895]
[1766594459821,0.69,122.75,122.71,16.36245895]
[1766594460141,16.52868469,122.77,122.72,8.21320157]
[1766594460349,0.2,122.77,122.74,7.49320157]
[1766594461223,0.69,122.8,122.76,8.03320157]
[1766594461429,0.69,122.79,122.75,7.49320157]
[1766594461955,8.18320157,122.81,122.77,7.49320157]
[1766594462126,18.62087453,122.81,122.77,7.49320157]
[1766594462332,0.69,122.81,122.77,7.49320157]
[1766594462544,0.69,122.83,122.79,7.49320157]
[1766594462925,11.12767296,122.83,122.79,7.49320157]
[1766594463141,19.26911032,122.83,122.78,8.03320157]
[1766594463356,26.76231189,122.83,122.78,8.03320157]
[1766594463658,7.49320157,122.82,122.76,8.14571711]
[1766594463840,0.69,122.81,122.77,15.6381326]
[1766594465325,0.69,122.81,122.78,7.49320157]
[1766594465923,8.18320157,122.81,122.76,8.14574067]
[1766594466140,0.69,122.8,122.73,0.54]
[1766594466341,0.69,122.77,122.73,16.18077841]
[1766594466541,7.49320157,122.77,122.72,30.52154787]
[1766594466747,0.69,122.76,122.72,22.37320157]
[1766594467447,0.66,122.78,122.73,8.03320157]
[1766594467634,8.15320157,122.78,122.73,8.03320157]
[1766594467834,0.66,122.78,122.74,7.49320157]
[1766594468430,8.15320157,122.78,122.73,8.03320157]
[1766594468633,0.66,122.81,122.77,7.49320157]
[1766594468942,7.49320157,122.81,122.76,7.49320157]
[1766594469145,0.66,122.8,122.76,7.49320157]
[1766594469351,0.66,122.8,122.77,7.49320157]
[1766594469647,0.66,122.8,122.76,7.49320157]
[1766594469955,0.66,122.8,122.76,15.63898847]
[1766594470543,0.66,122.8,122.77,7.49320157]
[1766594471239,0.66,122.8,122.77,15.63835331]
[1766594472845,0.66,122.8,122.77,8.14515174]
[1766594473024,0.66,122.8,122.75,35.78594018]
[1766594473025,0.66,122.8,122.76,15.63896833]
[1766594473227,0.66,122.8,122.76,8.68576676]
[1766594473535,0.66,122.8,122.76,16.17896833]
[1766594473743,0.66,122.8,122.76,15.63896833]
[1766594474052,8.80343705,122.8,122.76,7.49320157]
[1766594474349,16.29663862,122.8,122.75,31.05963054]
[1766594475432,8.15320157,122.8,122.76,8.14592313]
[1766594475632,0.66,122.8,122.76,15.6391247]
[1766594475955,0.66,122.8,122.76,8.14592313]
[1766594476253,0.66,122.8,122.76,15.6391247]
[1766594476847,0.66,122.79,122.75,15.63972284]
[1766594477156,0.66,122.79,122.74,30.5202449]
[1766594477639,15.63740248,122.79,122.74,30.5202449]
[1766594477846,20.35737534,122.81,122.74,30.5202449]
[1766594477847,0.66,122.78,122.74,51.428503]
[1766594478049,0.66,122.78,122.75,7.49320157]
[1766594479639,0.66,122.78,122.75,15.63981486]
[1766594480149,0.66,122.78,122.74,31.06017774]
[1766594480457,15.63722282,122.79,122.76,7.49320157]
[1766594480458,0.66,122.79,122.76,7.49320157]
[1766594480859,0.66,122.79,122.75,15.63983211]
[1766594481046,0.66,122.79,122.74,31.06030935]
[1766594481356,8.15320157,122.78,122.74,8.68710778]
[1766594481658,0.66,122.76,122.71,20.37207468]
[1766594481847,0.66,122.76,122.71,15.64249665]
[1766594481848,0.66,122.75,122.71,15.64249665]
[1766594482158,0.66,122.75,122.72,7.49320157]
[1766594483358,0.66,122.77,122.74,7.49320157]
[1766594483746,0.66,122.77,122.73,0.54]
[1766594483945,0.66,122.77,122.73,8.03320157]
[1766594484156,0.66,122.77,122.74,8.14727027]
[1766594484362,0.66,122.77,122.74,15.64047184]
[1766594484542,0.66,122.77,122.74,7.49320157]
[1766594484861,0.66,122.77,122.73,8.68763605]
[1766594485044,0.66,122.77,122.74,7.49320157]
[1766594485852,0.66,122.77,122.73,16.18083762]
[1766594488462,14.88,122.8,122.76,0.54]
[1766594488668,0.66,122.8,122.76,8.03320157]
[1766594489665,0.66,122.8,122.76,16.17871855]
[1766594491265,0.66,122.8,122.76,8.68551698]
[1766594491467,0.66,122.8,122.76,16.17871855]
[1766594493954,0.66,122.8,122.76,13.28859749]
[1766594494347,0.66,122.8,122.77,4.60308051]
[1766594495061,5.26308051,122.81,122.76,8.68551698]
[1766594495365,5.26308051,122.81,122.76,13.28859749]
[1766594496268,13.40576856,122.81,122.76,13.28859749]
[1766594496462,5.30651163,122.8,122.76,13.28859749]
[1766594496666,13.40576856,122.81,122.76,13.28859749]
[1766594496969,5.30651381,122.8,122.76,13.28859749]
[1766594497141,13.40576856,122.81,122.76,13.28859749]
[1766594497336,5.30926031,122.8,122.76,13.28859749]
[1766594497563,0.71,122.8,122.76,0.54]
[1766594497764,0.71,122.78,122.74,8.68700306]
[1766594497953,0.71,122.77,122.74,0.54]
[1766594498271,28.49933653,122.81,122.76,8.1459632]
[1766594498272,0.71,122.8,122.76,8.1459632]
[1766594498444,5.31373142,122.79,122.76,13.28904371]
[1766594498766,0.71,122.8,122.76,13.28904371]
[1766594498960,5.31363413,122.79,122.76,13.28904371]
[1766594499155,0.71,122.8,122.76,13.28904371]
[1766594499359,5.31752158,122.79,122.77,5.14308051]
[1766594499571,12.74737899,122.79,122.74,4.60308051]
[1766594499867,0.71,122.82,122.78,5.14308051]
[1766594500068,5.27832173,122.81,122.79,4.60308051]
[1766594500256,0.71,122.84,122.79,19.46308051]
[1766594500956,0.71,122.84,122.8,4.60308051]
[1766594501269,0.71,122.83,122.8,4.60308051]
[1766594502078,0.71,122.83,122.8,8.14327488]
[1766594502257,0.71,122.83,122.79,23.00377139]
[1766594502458,0.71,122.83,122.79,27.6068519]
[1766594502762,0.71,122.83,122.79,23.00377139]
[1766594502962,0.71,122.83,122.79,27.6068519]
[1766594503165,8.14030464,122.85,122.81,4.60308051]
[1766594503369,0.71,122.84,122.81,4.60308051]
[1766594504470,0.71,122.84,122.81,12.74557027]
[1766594505850,0.71,122.86,122.81,8.14248976]
[1766594506058,0.71,122.86,122.83,4.60308051]
[1766594506356,0.71,122.86,122.82,4.60308051]
[1766594506756,30.78370597,122.88,122.84,4.60308051]
[1766594506757,0.71,122.88,122.84,4.60308051]
[1766594506958,0.91,122.89,122.85,4.60308051]
[1766594507157,0.91,122.89,122.83,14.86]
[1766594507358,9.04738233,122.89,122.85,12.74300863]
[1766594507759,9.04738233,122.89,122.85,4.60308051]
[1766594508058,0.71,122.87,122.81,30.79326128]
[1766594508266,0.71,122.87,122.83,12.74440153]
[1766594508465,4.60308051,122.87,122.82,27.60484125]
[1766594508779,0.71,122.86,122.82,27.60484125]
[1766594508981,0.71,122.86,122.83,8.14127275]
[1766594509359,0.71,122.86,122.82,19.46308051]
[1766594509659,0.71,122.86,122.83,8.14100712]
[1766594509864,0.71,122.86,122.82,39.81756126]
[1766594510061,0.71,122.86,122.83,8.14117786]
[1766594510262,0.71,122.86,122.82,14.86]
[1766594510573,0.71,122.86,122.83,8.14133057]
[1766594510769,0.71,122.86,122.82,23.0016244]
[1766594510976,0.71,122.86,122.82,27.60470491]
[1766594511855,0.71,122.86,122.82,23.0016244]
[1766594512055,0.71,122.86,122.82,12.74470491]
[1766594512259,0.71,122.86,122.82,12.74505579]
[1766594514071,0.71,122.86,122.82,9.94447078]
[1766594515488,0.71,122.85,122.82,1.8024955]
[1766594515684,0.71,122.85,122.81,8.14233394]
[1766594516875,0.71,122.84,122.81,8.14233394]
[1766594517781,0.71,122.84,122.8,33.44069627]
[1766594517986,0.71,122.84,122.81,1.8024955]
[1766594518186,0.71,122.84,122.81,8.14217832]
[1766594518492,0.71,122.84,122.81,9.94467382]
[1766594518800,0.71,122.84,122.81,8.14217832]
[1766594518973,0.71,122.84,122.81,9.94467382]
[1766594519490,9.94141303,122.87,122.81,9.94467382]
[1766594519671,0.71,122.86,122.83,1.8024955]
[1766594519873,0.71,122.88,122.84,1.8024955]
[1766594520265,0.71,122.88,122.84,9.94290534]
[1766594521074,0.71,122.88,122.85,1.8024955]
[1766594521598,0.71,122.88,122.86,1.8024955]
[1766594521902,0.71,122.88,122.85,1.8024955]
[1766594522502,0.2,122.89,122.87,1.8024955]
[1766594522503,1e-08,122.89,122.87,1.8024955]
[1766594522717,0.2,122.9,122.87,0.81386831]
[1766594523006,0.2,122.9,122.86,25.29767296]
[1766594523201,0.2,122.9,122.88,1.8024955]
[1766594523703,0.2,122.92,122.89,1.8024955]
[1766594524517,0.2,122.92,122.89,9.93974955]
[1766594524801,0.2,122.92,122.88,22.99787866]
[1766594525100,0.71,122.91,122.88,14.86]
[1766594526078,5.30465305,122.91,122.87,8.13850094]
[1766594526279,0.71,122.91,122.87,12.73315399]
[1766594526609,0.71,122.91,122.88,8.13802083]
[1766594527483,0.71,122.91,122.87,12.73322079]
[1766594528515,12.73075076,122.91,122.86,38.03128978]
[1766594528806,0.69,122.9,122.86,33.4368816]
[1766594528984,0.69,122.9,122.86,38.03153465]
[1766594530419,4.59465305,122.88,122.83,4.59465305]
[1766594530706,0.69,122.87,122.84,12.73499258]
[1766594531082,0.2,122.92,122.86,15.03232601]
[1766594531287,0.2,122.99,122.91,4.59465305]
[1766594531288,4.79465305,122.99,122.91,4.59465305]
[1766594531594,4.23779501,122.98,122.95,8.84340871]
[1766594531788,4.59465305,122.98,122.95,3.52875566]
[1766594531994,4.59465305,122.97,122.95,2.80875566]
[1766594532399,4.59465305,122.98,122.95,2.80875566]
[1766594532715,4.59465305,122.96,122.91,4.59465305]
[1766594532886,8.13206473,122.97,122.91,5.28465305]
[1766594533215,0.69,122.96,122.92,5.28465305]
[1766594533514,0.69,122.96,122.92,0.69]
[1766594533716,0.69,122.94,122.89,15.55]
[1766594534021,5.28465305,122.93,122.89,15.55]
[1766594534187,0.69,122.93,122.89,20.14465305]
[1766594534920,8.13287112,122.96,122.9,4.59465305]
[1766594535087,5.28465305,122.95,122.91,0.69]
[1766594535493,0.69,122.95,122.91,5.28465305]
[1766594536499,0.69,122.95,122.91,13.420517]
[1766594537407,0.69,122.95,122.89,15.55]
[1766594537408,0.69,122.94,122.89,15.55]
[1766594537621,8.8234468,122.95,122.91,4.59465305]
[1766594538114,0.69,122.94,122.9,5.28465305]
[1766594538817,0.69,122.93,122.89,5.28465305]
[1766594538998,8.8234468,122.95,122.9,5.28465305]
[1766594539197,0.69,122.95,122.91,4.59465305]
[1766594539404,8.82217915,122.97,122.93,0.69]
[1766594539590,13.4168322,122.97,122.93,0.69]
[1766594540108,8.82298578,122.96,122.92,0.69]
[1766594540494,13.41763883,122.96,122.92,0.69]
[1766594541013,4.59465305,122.95,122.91,0.69]
[1766594541208,8.82298578,122.96,122.92,0.69]
[1766594541512,0.69,122.95,122.92,0.69]
[1766594542041,8.82223222,122.97,122.92,5.28465305]
[1766594542216,0.69,122.97,122.93,5.28465305]
[1766594542536,13.41678605,122.97,122.93,0.69]
[1766594542889,8.822133,122.97,122.93,5.28465305]
[1766594543312,0.69,122.97,122.93,5.28465305]
[1766594543518,12.72616868,122.98,122.94,0.69]
[1766594543816,0.69,122.98,122.94,5.28465305]
[1766594544114,13.41608413,122.98,122.94,0.69]
[1766594544318,4.59465305,122.97,122.94,0.69]
[1766594544530,18.76851236,122.99,122.95,0.69]
[1766594544712,0.2,122.99,122.96,0.69]
[1766594544903,0.2,122.99,122.96,4.59465305]
[1766594545104,0.2,122.99,122.97,5.28465305]
[1766594545413,0.2,122.99,122.97,0.69]
[1766594545606,0.89,122.99,122.95,5.28465305]
[1766594545803,13.61541983,122.99,122.95,0.69]
[1766594546006,10.81977427,122.99,122.95,0.69]
[1766594546229,9.02076678,122.99,122.95,0.69]
[1766594546424,0.89,122.99,122.95,2.48900749]
[1766594546628,0.2,122.99,122.97,2.48900749]
[1766594546939,9.42516998,123.01,122.97,0.69]
[1766594547109,1.79900749,123.0,122.95,0.69]
[1766594547301,1.79900749,123.0,122.95,2.48900749]
[1766594547501,1.79900749,122.99,122.95,0.69]
[1766594547913,1.79900749,122.98,122.95,0.69]
[1766594548201,9.93110091,122.97,122.94,0.69]
[1766594548419,8.13209342,122.97,122.94,0.69]
[1766594549030,2.27900749,122.96,122.92,0.69]
[1766594549741,0.48,122.95,122.91,14.86]
[1766594550034,1.79900749,122.95,122.91,15.55]
[1766594550406,8.13404912,122.94,122.91,15.55]
[1766594550838,8.13404912,122.94,122.91,0.69]
[1766594551130,10.41265833,122.95,122.91,0.69]
[1766594551912,13.20623991,122.95,122.91,0.69]
[1766594552530,8.13365084,122.95,122.91,0.69]
[1766594552717,12.72623991,122.95,122.91,0.69]
[1766594553937,15.59617208,122.95,122.91,0.69]
[1766594554573,0.48,122.98,122.93,8.15252124]
[1766594554742,7.94252124,122.98,122.93,8.15252124]
[1766594555114,7.46252124,122.97,122.93,0.69]
[1766594555604,7.94252124,122.97,122.93,0.69]
[1766594555805,28.45805439,122.99,122.93,0.69]
[1766594556034,7.46252124,122.98,122.94,0.69]
[1766594556332,15.59458597,122.97,122.94,0.69]
[1766594556840,8.13206473,122.97,122.94,0.69]
[1766594557036,8.13166159,122.98,122.95,0.69]
[1766594558641,8.22899698,123.02,122.98,0.68]
[1766594558822,8.22899698,123.02,122.96,0.68]
[1766594559022,8.22899698,123.02,122.98,8.14252124]
[1766594560252,7.46252124,123.01,122.98,0.68]
[1766594560432,16.17151822,123.02,122.98,0.68]
[1766594562628,8.22899698,123.02,122.98,8.14252124]
[1766594563242,0.48,123.01,122.96,7.46252124]
[1766594563441,7.94252124,123.01,122.97,0.68]
[1766594563659,29.03089585,123.02,122.97,0.68]
[1766594563826,36.49341709,123.02,122.98,0.68]
[1766594564145,8.22899698,123.02,122.99,0.68]
[1766594564350,0.1,123.02,123.0,0.68]
[1766594566629,0.1,123.02,122.99,0.68]
[1766594566922,0.1,123.02,122.99,8.14252124]
[1766594567621,0.1,123.02,122.99,0.68]
[1766594568666,7.56252124,123.02,122.98,0.68]
[1766594570225,15.6917865,123.02,122.98,0.68]
[1766594570426,7.94252124,123.01,122.96,0.68]
[1766594570646,7.94252124,123.01,122.97,0.68]
[1766594570958,7.94252124,123.01,122.98,0.68]
[1766594572150,3.28997901,123.01,122.98,0.68]
[1766594572357,11.41979169,123.01,122.98,0.68]
[1766594572949,8.12981268,123.01,122.98,0.68]
[1766594574683,10.93979169,123.01,122.98,0.68]
[1766594574878,31.74334262,123.01,122.97,0.68]
[1766594575057,2.80997901,123.0,122.97,0.68]
[1766594575261,3.28997901,122.99,122.95,11.11767296]
[1766594576054,2.80997901,123.0,122.96,0.68]
[1766594576272,0.48,123.0,122.96,0.68]
[1766594576468,11.42066712,123.0,122.96,0.68]
[1766594576660,11.42066712,123.0,122.92,0.68]
[1766594576661,2.80997901,122.97,122.92,0.68]
[1766594576861,2.80997901,122.96,122.93,0.68]
[1766594577182,2.80997901,122.97,122.93,0.68]
[1766594578556,10.94237843,122.97,122.93,0.68]
[1766594579585,2.80997901,122.96,122.91,14.84]
[1766594579876,53.7402342,122.97,122.91,0.68]
[1766594580077,2.80997901,122.95,122.91,0.68]
[1766594580460,2.80997901,122.94,122.91,0.68]
[1766594580663,8.13471081,122.93,122.9,0.68]
[1766594581060,25.27767296,122.97,122.9,3.48997901]
[1766594581261,10.94270509,122.96,122.92,0.68]
[1766594581563,20.3271933,122.99,122.94,0.68]
[1766594581867,16.15907433,122.98,122.94,0.68]
[1766594582057,10.94138249,122.98,122.94,0.68]
[1766594582260,10.94138249,122.98,122.93,2.80997901]
[1766594582497,2.80997901,122.97,122.92,0.68]
[1766594582663,10.94268648,122.97,122.93,0.68]
[1766594583680,8.13270747,122.97,122.93,0.68]
[1766594583872,8.13270747,122.97,122.94,0.68]
[1766594584471,10.94268648,122.97,122.94,0.68]
[1766594584685,2.80997901,122.96,122.91,25.95767296]
[1766594584880,2.80997901,122.96,122.91,11.11767296]
[1766594585181,31.2728483,122.97,122.93,0.68]
[1766594585384,8.13270747,122.97,122.93,3.48997901]
[1766594585589,8.13270747,122.97,122.93,0.68]
[1766594585959,8.13270747,122.97,122.93,3.48997901]
[1766594586162,8.13140348,122.98,122.95,0.68]
[1766594586377,8.13140348,122.98,122.95,3.48997901]
[1766594586774,8.13140348,122.98,122.95,0.68]
[1766594586962,8.13140348,122.98,122.95,3.48997901]
[1766594587369,8.13140348,122.98,122.95,0.68]
[1766594587670,8.13095168,122.99,122.96,0.72]
[1766594588474,35.91509079,122.99,122.94,0.72]
[1766594589572,7.45728327,122.98,122.94,0.72]
[1766594589773,27.78413911,122.99,122.95,0.72]
[1766594590679,20.32685584,122.99,122.95,0.72]
[1766594591094,27.78413911,122.99,122.95,0.72]
[1766594592887,20.32685584,122.99,122.95,0.72]
[1766594593067,27.78413911,122.99,122.95,0.72]
[1766594593496,8.1300813,123.0,122.95,0.72]
[1766594593671,12.67684288,122.99,122.95,0.72]
[1766594593866,7.45728327,122.99,122.95,0.72]
[1766594594086,8.13140348,122.98,122.95,0.72]
[1766594594386,8.13099579,122.99,122.95,8.17728327]
[1766594594592,8.12942037,123.01,122.98,0.72]
[1766594594972,15.58670364,123.01,122.98,0.72]
[1766594596276,8.22875955,123.02,122.98,0.72]
[1766594596481,8.22875955,123.02,122.99,0.72]
[1766594596682,15.68604282,123.02,122.99,0.72]
[1766594597282,8.22875955,123.02,122.99,0.72]
[1766594602198,10.53767296,123.04,122.99,0.72]
[1766594602199,0.1,123.04,123.01,7.45728327]
[1766594602373,0.1,123.04,123.03,0.72]
[1766594602870,0.1,123.04,123.01,0.72]
[1766594603073,0.1,123.04,123.02,0.72]
[1766594604184,0.1,123.05,123.01,7.45728327]
[1766594604387,0.1,123.07,123.05,0.72]
[1766594604702,0.1,123.07,123.06,0.72]
[1766594605005,0.1,123.07,123.06,8.17728327]
[1766594605309,0.1,123.07,123.06,0.72]
[1766594607110,0.1,123.07,123.04,0.72]
[1766594607504,0.1,123.07,123.05,0.72]
[1766594607802,7.55728327,123.07,123.0,19.38018995]
[1766594607998,7.55728327,123.07,123.03,0.72]
[1766594607999,7.85728327,123.07,123.03,0.72]
[1766594608304,7.85728327,123.07,123.02,0.72]
[1766594608305,7.75728327,123.06,123.02,0.72]
[1766594608491,22.69728327,123.07,123.02,8.17728327]
[1766594608803,15.58340061,123.06,123.02,0.72]
[1766594609490,8.12611734,123.06,123.02,7.45728327]
[1766594609803,15.58340061,123.06,123.03,0.72]
[1766594610184,8.12611734,123.06,123.03,0.72]
[1766594611788,0.1,123.09,123.05,8.17728327]
[1766594611981,0.1,123.09,123.08,8.17728327]
[1766594612303,0.1,123.09,123.08,0.72]
[1766594613106,0.1,123.09,123.07,8.17728327]
[1766594613811,0.2,123.1,123.09,0.72]
[1766594613990,23.46089492,123.14,123.09,8.17728327]
[1766594614387,8.32044788,123.15,123.1,7.45728327]
[1766594614692,1e-08,123.15,123.13,0.72]
[1766594617008,1e-08,123.15,123.12,4.57647273]
[1766594617009,5.25647273,123.14,123.09,5.29647273]
[1766594617211,0.68,123.14,123.1,5.24647273]
[1766594617406,0.68,123.14,123.1,0.67]
[1766594617712,0.68,123.14,123.1,5.24647273]
[1766594618708,0.68,123.14,123.1,0.67]
[1766594618899,0.68,123.14,123.1,5.24647273]
[1766594619108,1e-08,123.15,123.11,0.67]
[1766594619401,1e-08,123.15,123.11,5.24647273]
[1766594619998,8.12029108,123.15,123.11,0.67]
[1766594620183,8.79029108,123.15,123.11,0.67]
[1766594620511,13.36676381,123.15,123.11,0.67]
[1766594622212,8.79029108,123.15,123.11,0.67]
[1766594622417,0.67,123.13,123.09,4.57647273]
[1766594622614,5.24647273,123.13,123.09,0.67]
[1766594622913,5.24647273,123.12,123.07,15.51]
[1766594623112,5.24647273,123.12,123.07,20.08647273]
[1766594623414,13.36911891,123.12,123.07,19.41647273]
[1766594623614,13.36754709,123.14,123.1,0.67]
[1766594623791,4.57647273,123.13,123.08,4.57647273]
[1766594623997,5.24647273,123.13,123.08,4.57647273]
[1766594624204,4.57647273,123.12,123.07,27.54183466]
[1766594624518,5.24647273,123.12,123.08,0.67]
[1766594625289,5.24647273,123.12,123.07,15.51]
[1766594625290,5.24647273,123.11,123.07,15.51]
[1766594625506,0.67,123.11,123.07,15.51]
[1766594625712,27.53819701,123.13,123.09,0.67]
[1766594625993,13.36819701,123.13,123.09,0.67]
[1766594626199,0.67,123.11,123.06,11.10767296]
[1766594626390,4.57647273,123.1,123.06,0.67]
[1766594626596,5.24647273,123.11,123.06,0.67]
[1766594626798,4.57647273,123.1,123.06,0.67]
[1766594627930,8.79341725,123.11,123.07,0.67]
[1766594628111,13.36988998,123.11,123.07,0.67]
[1766594628514,5.24647273,123.09,123.05,14.84]
[1766594628699,5.24647273,123.09,123.05,15.51]
[1766594629019,13.36988998,123.11,123.07,0.67]
[1766594629222,8.79341725,123.11,123.06,5.24647273]
[1766594629417,13.36988998,123.11,123.06,5.24647273]
[1766594630125,13.36988998,123.11,123.06,0.67]
[1766594630918,5.24647273,123.09,123.05,14.84]
[1766594631133,4.57647273,123.1,123.06,0.67]
[1766594631330,5.24647273,123.1,123.06,0.67]
[1766594631504,13.37043169,123.1,123.06,0.67]
[1766594632040,10.58886422,123.11,123.06,0.67]
[1766594633124,0.67,123.1,123.06,0.67]
[1766594633516,2.46572422,123.1,123.06,0.67]
[1766594634023,10.58921864,123.1,123.06,0.67]
[1766594635233,0.67,123.08,123.04,12.23339718]
[1766594635397,2.46572422,123.07,123.03,0.67]
[1766594635799,0.67,123.07,123.03,0.67]
[1766594636020,5.25372247,123.07,123.03,0.67]
[1766594636406,5.25372247,123.07,123.04,0.67]
[1766594636726,14.84,123.09,123.04,0.67]
[1766594637023,20.09372247,123.09,123.05,0.67]
[1766594637229,8.12479688,123.08,123.05,0.67]
[1766594638830,13.37813361,123.09,123.05,0.67]
[1766594639402,8.79441114,123.09,123.05,0.67]
[1766594639606,8.12215724,123.12,123.08,0.67]
[1766594640009,13.37587971,123.12,123.08,0.67]
[1766594641019,9.91875481,123.11,123.06,0.67]
[1766594641330,13.37677358,123.11,123.06,0.67]
[1766594641629,4.58372247,123.14,123.1,0.67]
[1766594641813,10.59060937,123.13,123.08,4.58372247]
[1766594642014,23.6304246,123.15,123.1,4.58372247]
[1766594642219,5.33676611,123.14,123.11,0.67]
[1766594642418,28.21414707,123.15,123.11,0.67]
[1766594642615,4.58372247,123.12,123.07,5.25372247]
[1766594642815,4.58372247,123.12,123.08,0.67]
[1766594643015,5.25372247,123.13,123.08,0.67]
[1766594643221,5.34008607,123.12,123.08,0.67]
[1766594643421,8.12215724,123.12,123.08,0.67]
[1766594643923,5.25372247,123.11,123.07,0.67]
[1766594645614,13.37691489,123.11,123.07,0.67]
[1766594646027,8.12319242,123.11,123.07,4.58372247]
[1766594646311,8.12319242,123.11,123.08,0.67]
[1766594646515,5.25372247,123.13,123.08,5.25372247]
[1766594646714,4.58372247,123.11,123.08,0.67]
[1766594646941,5.25372247,123.11,123.06,5.25372247]
[1766594647321,5.25372247,123.11,123.07,0.69]
[1766594647524,4.58372247,123.1,123.05,29.86139543]
[1766594647847,13.37785928,123.09,123.05,11.12767296]
[1766594648142,5.35458585,123.08,123.03,0.69]
[1766594648333,0.67,123.06,123.01,5.27372247]
[1766594648549,10.43767296,123.08,123.05,0.69]
[1766594648746,11.10767296,123.08,123.03,5.27372247]
[1766594649331,15.69139543,123.08,123.03,5.27372247]
[1766594649655,15.69139543,123.08,123.03,0.69]
[1766594649656,8.12545705,123.07,123.03,0.69]
[1766594649959,13.37917952,123.07,123.03,0.69]
[1766594650161,8.79545705,123.07,123.03,0.69]
[1766594650655,13.37917952,123.07,123.03,0.69]
[1766594653251,4.58372247,123.06,123.01,0.69]
[1766594653454,5.25372247,123.05,123.01,0.69]
[1766594654346,8.79611734,123.06,123.02,0.69]
[1766594654551,13.37983981,123.06,123.02,0.69]
[1766594656059,4.58372247,123.05,123.02,0.69]
[1766594656458,12.71088451,123.05,123.02,0.69]
[1766594656667,8.12716204,123.05,123.02,0.69]
[1766594657032,12.71088451,123.05,123.02,0.69]
[1766594657261,8.12716204,123.05,123.02,0.69]
[1766594657462,8.12716204,123.05,123.0,12.71379653]
[1766594657463,4.58372247,123.04,123.0,0.69]
[1766594657667,4.58372247,123.04,122.98,0.69]
[1766594657668,5.25372247,123.03,122.98,0.69]
[1766594657836,5.25372247,123.03,122.99,0.69]
[1766594658033,2.46820086,123.02,122.98,0.69]
[1766594658357,1.79820086,123.03,122.99,0.69]
[1766594658543,9.9267156,123.03,122.99,0.69]
[1766594659961,1.79820086,123.02,122.96,27.07587382]
[1766594660143,2.46820086,123.01,122.96,25.27767296]
[1766594660343,2.46820086,123.01,122.97,0.69]
[1766594660957,10.59817511,123.01,122.97,0.69]
[1766594661158,10.59817511,123.01,122.95,1.79820086]
[1766594661159,0.67,123.0,122.95,1.79820086]
[1766594661365,0.67,123.0,122.96,0.69]
[1766594661366,2.46820086,123.0,122.96,0.69]
[1766594662751,0.67,123.0,122.96,0.69]
[1766594662960,10.59872948,123.0,122.96,0.69]
[1766594663765,22.96970663,123.01,122.96,10.62076217]
[1766594663941,22.96970663,123.01,122.98,0.69]